[Event "Titled Tuesday Blitz June 15 2021"]
[White "Goryachkina, Aleksandra"]
[Black "Zverev, Lev"]
[WhiteFideId "4147103"]
[BlackFideId "24250775"]
[WhiteElo "2441"]
[BlackElo "2109"]
[Result "1-0"]
[Round "10"]
[TimeControl "180+1"]
[Date "2021.06.15"]
[WhiteClock "0:00:57"]
[BlackClock "0:00:28"]

1. e4 {[%clk 0:03:00]}  e5 {[%clk 0:02:58]} 2. Nf3 {[%clk 0:02:59]}  Nc6 {[%clk 0:02:59]} 3. Nc3 {[%clk 0:03:00]}  Nf6 {[%clk 0:02:58]} 4. d4 {[%clk 0:03:00]}  exd4 {[%clk 0:02:58]} 5. Nxd4 {[%clk 0:03:00]}  Bc5 {[%clk 0:02:58]} 6. Nxc6 {[%clk 0:02:52]}  bxc6 {[%clk 0:02:47]} 7. Bd3 {[%clk 0:02:51]}  d5 {[%clk 0:02:44]} 8. O-O {[%clk 0:02:47]}  O-O {[%clk 0:02:41]} 9. exd5 {[%clk 0:02:44]}  cxd5 {[%clk 0:02:37]} 10. Bg5 {[%clk 0:02:43]}  c6 {[%clk 0:02:35]} 11. h3 {[%clk 0:02:40]}  Be7 {[%clk 0:02:34]} 12. Qf3 {[%clk 0:02:39]}  h6 {[%clk 0:02:32]} 13. Bf4 {[%clk 0:02:38]}  Be6 {[%clk 0:02:30]} 14. Rad1 {[%clk 0:02:30]}  Bd6 {[%clk 0:02:15]} 15. Ne2 {[%clk 0:02:27]}  Bxf4 {[%clk 0:02:12]} 16. Nxf4 {[%clk 0:02:24]}  Qd6 {[%clk 0:02:09]} 17. c4 {[%clk 0:02:20]}  d4 {[%clk 0:02:03]} 18. Rfe1 {[%clk 0:02:14]}  Rab8 {[%clk 0:01:59]} 19. b3 {[%clk 0:02:14]}  c5 {[%clk 0:01:58]} 20. Nh5 {[%clk 0:02:06]}  Nxh5 {[%clk 0:01:52]} 21. Qxh5 {[%clk 0:02:06]}  Rfe8 {[%clk 0:01:45]} 22. Re5 {[%clk 0:01:59]}  Re7 {[%clk 0:01:39]} 23. Rxc5 {[%clk 0:01:50]}  Rbe8 {[%clk 0:01:30]} 24. Re5 {[%clk 0:01:40]}  f6 {[%clk 0:01:17]} 25. Re2 {[%clk 0:01:30]}  Bf7 {[%clk 0:01:08]} 26. Qf3 {[%clk 0:01:28]}  Rxe2 {[%clk 0:01:06]} 27. Bxe2 {[%clk 0:01:27]}  Qe5 {[%clk 0:01:07]} 28. Bf1 {[%clk 0:01:21]}  Bh5 {[%clk 0:01:05]} 29. g4 {[%clk 0:01:21]}  Bg6 {[%clk 0:01:05]} 30. Qd5+ {[%clk 0:01:18]}  Bf7 {[%clk 0:00:49]} 31. Qxd4 {[%clk 0:01:15]}  Qa5 {[%clk 0:00:50]} 32. Qd2 {[%clk 0:01:06]}  Qc7 {[%clk 0:00:46]} 33. Bg2 {[%clk 0:01:03]}  h5 {[%clk 0:00:46]} 34. g5 {[%clk 0:00:59]}  Re5 {[%clk 0:00:28]} 35. Qd8+ {[%clk 0:00:56]}  Qxd8 {[%clk 0:00:27]} 36. Rxd8+ {[%clk 0:00:57]}  Kh7 {[%clk 0:00:27]} 37. gxf6 {[%clk 0:00:57]}  gxf6 {[%clk 0:00:28]} 38. Rd7 {[%clk 0:00:57]} 1-0


[Site "https://www.chess.com"]

[Event "Titled Tuesday Blitz June 15 2021"]
[White "Herrera Reyes, Jose Antonio"]
[Black "Haitin, Ilja"]
[WhiteFideId "2274914"]
[BlackFideId "4501764"]
[WhiteElo "2370"]
[BlackElo "2182"]
[Result "0-1"]
[Round "10"]
[TimeControl "180+1"]
[Date "2021.06.15"]
[WhiteClock "0:01:03"]
[BlackClock "0:00:18"]

1. Nf3 {[%clk 0:03:00]}  d5 {[%clk 0:02:42]} 2. g3 {[%clk 0:03:00]}  Nf6 {[%clk 0:02:39]} 3. Bg2 {[%clk 0:03:01]}  Bf5 {[%clk 0:02:39]} 4. d3 {[%clk 0:03:00]}  c6 {[%clk 0:02:38]} 5. O-O {[%clk 0:03:00]}  h6 {[%clk 0:02:39]} 6. c3 {[%clk 0:03:01]}  e6 {[%clk 0:02:38]} 7. Qb3 {[%clk 0:03:02]}  Qb6 {[%clk 0:02:37]} 8. Be3 {[%clk 0:03:02]}  Qxb3 {[%clk 0:02:34]} 9. axb3 {[%clk 0:03:03]}  a6 {[%clk 0:02:30]} 10. b4 {[%clk 0:03:03]}  Nbd7 {[%clk 0:02:27]} 11. Nbd2 {[%clk 0:03:03]}  Rc8 {[%clk 0:02:26]} 12. Nb3 {[%clk 0:03:03]}  Bd6 {[%clk 0:02:17]} 13. Na5 {[%clk 0:03:00]}  Rc7 {[%clk 0:02:11]} 14. Nd4 {[%clk 0:03:00]}  Bg6 {[%clk 0:02:05]} 15. h3 {[%clk 0:02:59]}  O-O {[%clk 0:02:05]} 16. f4 {[%clk 0:02:59]}  e5 {[%clk 0:01:56]} 17. fxe5 {[%clk 0:02:49]}  Bxe5 {[%clk 0:01:57]} 18. Bf4 {[%clk 0:02:44]}  Bxf4 {[%clk 0:01:55]} 19. Rxf4 {[%clk 0:02:45]}  Re8 {[%clk 0:01:55]} 20. Raf1 {[%clk 0:02:43]}  Ne5 {[%clk 0:01:50]} 21. g4 {[%clk 0:02:37]}  Rce7 {[%clk 0:01:50]} 22. Ndb3 {[%clk 0:02:31]}  b6 {[%clk 0:01:46]} 23. d4 {[%clk 0:02:30]}  bxa5 {[%clk 0:01:41]} 24. dxe5 {[%clk 0:02:30]}  Rxe5 {[%clk 0:01:41]} 25. Nxa5 {[%clk 0:02:30]}  Rxe2 {[%clk 0:01:39]} 26. Nxc6 {[%clk 0:02:31]}  Rxb2 {[%clk 0:01:35]} 27. R4f2 {[%clk 0:02:16]}  Ree2 {[%clk 0:01:31]} 28. Rxe2 {[%clk 0:02:16]}  Rxe2 {[%clk 0:01:32]} 29. Ra1 {[%clk 0:02:15]}  Be4 {[%clk 0:01:28]} 30. Bxe4 {[%clk 0:02:11]}  dxe4 {[%clk 0:01:28]} 31. Nd4 {[%clk 0:02:09]}  Rd2 {[%clk 0:01:25]} 32. Rxa6 {[%clk 0:02:06]}  e3 {[%clk 0:01:25]} 33. b5 {[%clk 0:02:02]}  Ne4 {[%clk 0:01:20]} 34. Ra8+ {[%clk 0:02:01]}  Kh7 {[%clk 0:01:20]} 35. Re8 {[%clk 0:02:01]}  Nxc3 {[%clk 0:01:15]} 36. Rxe3 {[%clk 0:02:01]}  Rxd4 {[%clk 0:01:06]} 37. Rxc3 {[%clk 0:02:01]}  Rb4 {[%clk 0:01:06]} 38. Rc5 {[%clk 0:02:01]}  Rb2 {[%clk 0:01:05]} 39. Rf5 {[%clk 0:01:57]}  Kg8 {[%clk 0:01:05]} 40. Kf1 {[%clk 0:01:53]}  g6 {[%clk 0:01:05]} 41. Rc5 {[%clk 0:01:51]}  Kg7 {[%clk 0:01:05]} 42. h4 {[%clk 0:01:51]}  Kf6 {[%clk 0:01:02]} 43. g5+ {[%clk 0:01:51]}  hxg5 {[%clk 0:01:03]} 44. hxg5+ {[%clk 0:01:51]}  Ke6 {[%clk 0:01:03]} 45. Ke1 {[%clk 0:01:52]}  Kd6 {[%clk 0:01:01]} 46. Rc6+ {[%clk 0:01:52]}  Ke5 {[%clk 0:01:00]} 47. Rc5+ {[%clk 0:01:52]}  Kd4 {[%clk 0:00:57]} 48. Rc7 {[%clk 0:01:43]}  Rxb5 {[%clk 0:00:54]} 49. Rxf7 {[%clk 0:01:43]}  Rxg5 {[%clk 0:00:50]} 50. Ke2 {[%clk 0:01:43]}  Ke4 {[%clk 0:00:44]} 51. Kf2 {[%clk 0:01:39]}  Rg4 {[%clk 0:00:40]} 52. Ra7 {[%clk 0:01:19]}  Kf4 {[%clk 0:00:37]} 53. Ra4+ {[%clk 0:01:17]}  Kg5 {[%clk 0:00:37]} 54. Ra6 {[%clk 0:01:17]}  Kh4 {[%clk 0:00:36]} 55. Kf3 {[%clk 0:01:17]}  Rg3+ {[%clk 0:00:31]} 56. Kf2 {[%clk 0:01:16]}  g5 {[%clk 0:00:27]} 57. Ra4+ {[%clk 0:01:16]}  Kh3 {[%clk 0:00:20]} 58. Ra8 {[%clk 0:01:13]}  Rg2+ {[%clk 0:00:21]} 59. Kf1 {[%clk 0:01:12]}  g4 {[%clk 0:00:21]} 60. Ra3+ {[%clk 0:01:10]}  Kh2 {[%clk 0:00:20]} 61. Ra8 {[%clk 0:01:10]}  Rg1+ {[%clk 0:00:20]} 62. Kf2 {[%clk 0:01:09]}  g3+ {[%clk 0:00:20]} 63. Kf3 {[%clk 0:01:10]}  Rf1+ {[%clk 0:00:21]} 64. Ke2 {[%clk 0:01:10]}  Rf7 {[%clk 0:00:20]} 65. Rh8+ {[%clk 0:01:03]}  Kg1 {[%clk 0:00:19]} 66. Rf8 {[%clk 0:01:02]}  Rxf8 {[%clk 0:00:18]} 67. Kd3 {[%clk 0:01:03]}  g2 {[%clk 0:00:18]} 0-1


[Site "https://www.chess.com"]

[Event "Titled Tuesday Blitz June 15 2021"]
[White "Jacobson, Brandon"]
[Black "Moskalenko, Alexander"]
[WhiteFideId "30901561"]
[BlackFideId "4155351"]
[WhiteElo "2362"]
[BlackElo "2495"]
[Result "1-0"]
[Round "10"]
[TimeControl "180+1"]
[Date "2021.06.15"]
[WhiteClock "0:00:06"]
[BlackClock "0:00:51"]

1. d4 {[%clk 0:03:00]}  d6 {[%clk 0:03:00]} 2. Nf3 {[%clk 0:02:59]}  Nf6 {[%clk 0:03:01]} 3. c4 {[%clk 0:03:00]}  g6 {[%clk 0:03:01]} 4. Nc3 {[%clk 0:03:01]}  Bg7 {[%clk 0:03:01]} 5. e4 {[%clk 0:03:01]}  O-O {[%clk 0:03:02]} 6. Be2 {[%clk 0:03:02]}  Bg4 {[%clk 0:03:02]} 7. Be3 {[%clk 0:03:02]}  Nfd7 {[%clk 0:03:02]} 8. Qd2 {[%clk 0:03:03]}  Nc6 {[%clk 0:02:57]} 9. h4 {[%clk 0:02:56]}  e5 {[%clk 0:02:50]} 10. d5 {[%clk 0:02:53]}  Bxf3 {[%clk 0:02:45]} 11. Bxf3 {[%clk 0:02:54]}  Nd4 {[%clk 0:02:44]} 12. h5 {[%clk 0:02:47]}  c6 {[%clk 0:02:40]} 13. O-O-O {[%clk 0:02:28]}  cxd5 {[%clk 0:02:33]} 14. cxd5 {[%clk 0:02:18]}  Rc8 {[%clk 0:02:33]} 15. Kb1 {[%clk 0:02:18]}  Re8 {[%clk 0:02:16]} 16. hxg6 {[%clk 0:02:16]}  hxg6 {[%clk 0:02:17]} 17. Bg4 {[%clk 0:02:14]}  Rc7 {[%clk 0:02:15]} 18. Bxd7 {[%clk 0:02:05]}  Rxd7 {[%clk 0:02:16]} 19. Bh6 {[%clk 0:02:01]}  Bf6 {[%clk 0:02:11]} 20. Qd3 {[%clk 0:01:57]}  b5 {[%clk 0:02:11]} 21. Rh3 {[%clk 0:01:44]}  Qe7 {[%clk 0:02:01]} 22. Rdh1 {[%clk 0:01:41]}  b4 {[%clk 0:02:01]} 23. Ne2 {[%clk 0:01:33]}  b3 {[%clk 0:02:01]} 24. axb3 {[%clk 0:01:31]}  Rb7 {[%clk 0:01:59]} 25. Nxd4 {[%clk 0:00:47]}  exd4 {[%clk 0:02:00]} 26. Bg5 {[%clk 0:00:47]}  Bxg5 {[%clk 0:01:32]} 27. Rh8+ {[%clk 0:00:39]}  Kg7 {[%clk 0:01:33]} 28. R8h7+ {[%clk 0:00:32]}  Kg8 {[%clk 0:01:33]} 29. Rh8+ {[%clk 0:00:32]}  Kg7 {[%clk 0:01:34]} 30. R8h7+ {[%clk 0:00:19]}  Kf6 {[%clk 0:01:11]} 31. Qf3+ {[%clk 0:00:17]}  Ke5 {[%clk 0:01:12]} 32. Qg3+ {[%clk 0:00:18]}  Bf4 {[%clk 0:01:12]} 33. R7h5+ {[%clk 0:00:16]}  f5 {[%clk 0:01:12]} 34. Qxg6 {[%clk 0:00:17]}  d3 {[%clk 0:01:01]} 35. Qxf5+ {[%clk 0:00:11]}  Kd4 {[%clk 0:01:02]} 36. Qxf4 {[%clk 0:00:12]}  Qxe4 {[%clk 0:01:03]} 37. Qd2 {[%clk 0:00:08]}  Qe2 {[%clk 0:00:52]} 38. Qc3+ {[%clk 0:00:06]}  Ke4 {[%clk 0:00:51]} 39. R1h4+ {[%clk 0:00:06]} 1-0


[Site "https://www.chess.com"]

[Event "Titled Tuesday Blitz June 15 2021"]
[White "Jakubowski, Krzysztof"]
[Black "Roman, Rodrigo"]
[WhiteFideId "1112848"]
[BlackFideId "3701220"]
[WhiteElo "2462"]
[BlackElo "2043"]
[Result "1-0"]
[Round "10"]
[TimeControl "180+1"]
[Date "2021.06.15"]
[WhiteClock "0:00:18"]
[BlackClock "0:00:02"]

1. e4 {[%clk 0:03:00]}  a6 {[%clk 0:02:50]} 2. a4 {[%clk 0:02:59]}  c5 {[%clk 0:02:49]} 3. d3 {[%clk 0:02:56]}  Nc6 {[%clk 0:02:47]} 4. g3 {[%clk 0:02:55]}  d6 {[%clk 0:02:40]} 5. Bg2 {[%clk 0:02:54]}  g6 {[%clk 0:02:38]} 6. h4 {[%clk 0:02:52]}  Bg7 {[%clk 0:02:39]} 7. h5 {[%clk 0:02:52]}  Nf6 {[%clk 0:02:32]} 8. h6 {[%clk 0:02:50]}  Bf8 {[%clk 0:02:31]} 9. c3 {[%clk 0:02:46]}  Rb8 {[%clk 0:02:20]} 10. d4 {[%clk 0:02:41]}  cxd4 {[%clk 0:02:16]} 11. cxd4 {[%clk 0:02:40]}  Bg4 {[%clk 0:02:16]} 12. f3 {[%clk 0:02:38]}  Bd7 {[%clk 0:02:15]} 13. Ne2 {[%clk 0:02:29]}  e5 {[%clk 0:02:12]} 14. Nbc3 {[%clk 0:02:21]}  Be7 {[%clk 0:02:08]} 15. dxe5 {[%clk 0:02:09]}  Nxe5 {[%clk 0:01:58]} 16. g4 {[%clk 0:01:58]}  O-O {[%clk 0:01:45]} 17. g5 {[%clk 0:01:58]}  Nh5 {[%clk 0:01:42]} 18. f4 {[%clk 0:01:58]}  Nc6 {[%clk 0:01:39]} 19. Bf3 {[%clk 0:01:50]}  f6 {[%clk 0:01:20]} 20. Bxh5 {[%clk 0:01:49]}  gxh5 {[%clk 0:01:19]} 21. Be3 {[%clk 0:01:14]}  fxg5 {[%clk 0:01:17]} 22. fxg5 {[%clk 0:01:14]}  Ne5 {[%clk 0:01:13]} 23. Qd5+ {[%clk 0:01:06]}  Kh8 {[%clk 0:01:13]} 24. Bd4 {[%clk 0:01:05]}  Qc7 {[%clk 0:01:09]} 25. O-O-O {[%clk 0:00:38]}  Bxg5+ {[%clk 0:01:04]} 26. Kb1 {[%clk 0:00:38]}  Bc6 {[%clk 0:00:58]} 27. Qb3 {[%clk 0:00:24]}  Qf7 {[%clk 0:00:45]} 28. Qb4 {[%clk 0:00:19]}  Rbd8 {[%clk 0:00:43]} 29. a5 {[%clk 0:00:19]}  h4 {[%clk 0:00:40]} 30. Rhf1 {[%clk 0:00:19]}  Qxf1 {[%clk 0:00:31]} 31. Rxf1 {[%clk 0:00:20]}  Rxf1+ {[%clk 0:00:31]} 32. Ka2 {[%clk 0:00:21]}  h3 {[%clk 0:00:30]} 33. Qb6 {[%clk 0:00:21]}  h2 {[%clk 0:00:27]} 34. Qc7 {[%clk 0:00:20]}  Bxh6 {[%clk 0:00:04]} 35. Qxd8+ {[%clk 0:00:19]}  Kg7 {[%clk 0:00:04]} 36. Ng3 {[%clk 0:00:19]}  Rg1 {[%clk 0:00:03]} 37. Nce2 {[%clk 0:00:18]}  h1=Q {[%clk 0:00:02]} 38. Nxh1 {[%clk 0:00:18]}  Rxh1 {[%clk 0:00:03]} 39. Qxd6 {[%clk 0:00:18]}  Rh2 {[%clk 0:00:01]} 40. Qxe5+ {[%clk 0:00:18]}  Kg6 {[%clk 0:00:02]} 41. Qxh2 {[%clk 0:00:18]} 1-0


[Site "https://www.chess.com"]

[Event "Titled Tuesday Blitz June 15 2021"]
[White "Jarovinsky, Alexey"]
[Black "Novikov, Evgenij"]
[WhiteFideId "14115131"]
[BlackFideId "4125380"]
[WhiteElo "2446"]
[BlackElo "2242"]
[Result "1-0"]
[Round "10"]
[TimeControl "180+1"]
[Date "2021.06.15"]
[WhiteClock "0:00:05"]
[BlackClock "0:00:05"]

1. Nc3 {[%clk 0:03:00]}  d5 {[%clk 0:02:48]} 2. e4 {[%clk 0:03:00]}  c6 {[%clk 0:02:47]} 3. g3 {[%clk 0:03:00]}  Nf6 {[%clk 0:02:44]} 4. Bg2 {[%clk 0:02:59]}  e6 {[%clk 0:02:42]} 5. d4 {[%clk 0:02:58]}  dxe4 {[%clk 0:02:37]} 6. Nxe4 {[%clk 0:02:58]}  Nxe4 {[%clk 0:02:38]} 7. Bxe4 {[%clk 0:02:58]}  Nd7 {[%clk 0:02:38]} 8. Bg2 {[%clk 0:02:58]}  Nf6 {[%clk 0:02:38]} 9. Nf3 {[%clk 0:02:59]}  Be7 {[%clk 0:02:38]} 10. O-O {[%clk 0:02:59]}  O-O {[%clk 0:02:38]} 11. b3 {[%clk 0:02:57]}  a5 {[%clk 0:02:37]} 12. c4 {[%clk 0:02:55]}  a4 {[%clk 0:02:37]} 13. Bb2 {[%clk 0:02:42]}  Qa5 {[%clk 0:02:30]} 14. Qc2 {[%clk 0:02:38]}  c5 {[%clk 0:02:12]} 15. Rad1 {[%clk 0:02:32]}  cxd4 {[%clk 0:02:07]} 16. Nxd4 {[%clk 0:02:32]}  Rd8 {[%clk 0:01:58]} 17. h3 {[%clk 0:02:16]}  Qb6 {[%clk 0:01:36]} 18. Bc3 {[%clk 0:01:52]}  axb3 {[%clk 0:01:34]} 19. axb3 {[%clk 0:01:52]}  Bd7 {[%clk 0:01:34]} 20. Ra1 {[%clk 0:01:42]}  Bc5 {[%clk 0:01:25]} 21. Qb2 {[%clk 0:01:30]}  Bb4 {[%clk 0:00:55]} 22. Nc2 {[%clk 0:01:17]}  Bxc3 {[%clk 0:00:54]} 23. Qxc3 {[%clk 0:01:18]}  Bc6 {[%clk 0:00:54]} 24. Qb4 {[%clk 0:00:58]}  Qc7 {[%clk 0:00:50]} 25. Qc5 {[%clk 0:00:54]}  Nd7 {[%clk 0:00:40]} 26. Qe3 {[%clk 0:00:49]}  Bxg2 {[%clk 0:00:39]} 27. Kxg2 {[%clk 0:00:50]}  Ne5 {[%clk 0:00:37]} 28. Rxa8 {[%clk 0:00:47]}  Rxa8 {[%clk 0:00:32]} 29. Re1 {[%clk 0:00:45]}  Qc6+ {[%clk 0:00:30]} 30. Qe4 {[%clk 0:00:45]}  Qxe4+ {[%clk 0:00:30]} 31. Rxe4 {[%clk 0:00:45]}  Nd3 {[%clk 0:00:29]} 32. Rd4 {[%clk 0:00:36]}  Nc5 {[%clk 0:00:27]} 33. b4 {[%clk 0:00:35]}  Na4 {[%clk 0:00:24]} 34. c5 {[%clk 0:00:32]}  Nc3 {[%clk 0:00:18]} 35. Rd7 {[%clk 0:00:30]}  Rb8 {[%clk 0:00:19]} 36. Nd4 {[%clk 0:00:28]}  Kf8 {[%clk 0:00:17]} 37. Rd6 {[%clk 0:00:19]}  Nd5 {[%clk 0:00:15]} 38. b5 {[%clk 0:00:17]}  Ke7 {[%clk 0:00:15]} 39. Nf5+ {[%clk 0:00:12]}  Kf6 {[%clk 0:00:15]} 40. Nd4 {[%clk 0:00:07]}  Ke7 {[%clk 0:00:14]} 41. Nf5+ {[%clk 0:00:07]}  Kf6 {[%clk 0:00:15]} 42. Ne3 {[%clk 0:00:07]}  Nxe3+ {[%clk 0:00:14]} 43. fxe3 {[%clk 0:00:08]}  Rc8 {[%clk 0:00:15]} 44. Rd7 {[%clk 0:00:06]}  Rxc5 {[%clk 0:00:14]} 45. Rxb7 {[%clk 0:00:06]}  Rc2+ {[%clk 0:00:14]} 46. Kf3 {[%clk 0:00:06]}  Rb2 {[%clk 0:00:15]} 47. b6 {[%clk 0:00:05]}  h5 {[%clk 0:00:13]} 48. h4 {[%clk 0:00:05]}  g6 {[%clk 0:00:13]} 49. Ke4 {[%clk 0:00:04]}  Rd2 {[%clk 0:00:07]} 50. Rc7 {[%clk 0:00:03]}  Rb2 {[%clk 0:00:04]} 51. b7 {[%clk 0:00:02]}  Kg7 {[%clk 0:00:02]} 52. Ke5 {[%clk 0:00:02]}  Rb6 {[%clk 0:00:02]} 53. Kd4 {[%clk 0:00:02]}  Kf6 {[%clk 0:00:02]} 54. Kc5 {[%clk 0:00:02]}  Rb1 {[%clk 0:00:02]} 55. Kc6 {[%clk 0:00:03]}  Ke5 {[%clk 0:00:02]} 56. Rc8 {[%clk 0:00:03]}  Ke4 {[%clk 0:00:01]} 57. b8=Q {[%clk 0:00:03]}  Rxb8 {[%clk 0:00:02]} 58. Rxb8 {[%clk 0:00:03]}  Kxe3 {[%clk 0:00:03]} 59. Rf8 {[%clk 0:00:03]}  f5 {[%clk 0:00:03]} 60. Rf6 {[%clk 0:00:02]}  e5 {[%clk 0:00:03]} 61. Rxg6 {[%clk 0:00:02]}  f4 {[%clk 0:00:03]} 62. gxf4 {[%clk 0:00:03]}  exf4 {[%clk 0:00:04]} 63. Rg5 {[%clk 0:00:03]}  f3 {[%clk 0:00:04]} 64. Rxh5 {[%clk 0:00:04]}  f2 {[%clk 0:00:05]} 65. Rf5 {[%clk 0:00:04]}  Ke2 {[%clk 0:00:05]} 66. Rxf2+ {[%clk 0:00:04]}  Kxf2 {[%clk 0:00:05]} 67. h5 {[%clk 0:00:05]} 1-0


[Site "https://www.chess.com"]

[Event "Titled Tuesday Blitz June 15 2021"]
[White "Jia, Haoxiang"]
[Black "Zemach, Roee"]
[WhiteFideId "8602999"]
[BlackFideId "2818531"]
[WhiteElo "2632"]
[BlackElo "2131"]
[Result "1-0"]
[Round "10"]
[TimeControl "180+1"]
[Date "2021.06.15"]
[WhiteClock "0:00:30"]
[BlackClock "0:00:52"]

1. Nf3 {[%clk 0:02:55]}  Nf6 {[%clk 0:02:59]} 2. c4 {[%clk 0:02:55]}  e6 {[%clk 0:02:59]} 3. g3 {[%clk 0:02:55]}  d5 {[%clk 0:02:59]} 4. Bg2 {[%clk 0:02:55]}  Be7 {[%clk 0:02:59]} 5. d4 {[%clk 0:02:55]}  O-O {[%clk 0:02:59]} 6. O-O {[%clk 0:02:56]}  dxc4 {[%clk 0:02:59]} 7. Qc2 {[%clk 0:02:56]}  a6 {[%clk 0:02:59]} 8. a4 {[%clk 0:02:54]}  Bd7 {[%clk 0:02:59]} 9. Qxc4 {[%clk 0:02:54]}  Bc6 {[%clk 0:03:00]} 10. Bf4 {[%clk 0:02:53]}  a5 {[%clk 0:02:59]} 11. Nc3 {[%clk 0:02:43]}  Na6 {[%clk 0:02:58]} 12. Rad1 {[%clk 0:02:31]}  Nb4 {[%clk 0:02:54]} 13. Qb3 {[%clk 0:01:56]}  Nfd5 {[%clk 0:02:38]} 14. Bd2 {[%clk 0:01:50]}  Qe8 {[%clk 0:02:32]} 15. Ra1 {[%clk 0:01:34]}  Bf6 {[%clk 0:02:23]} 16. e4 {[%clk 0:01:22]}  Nxc3 {[%clk 0:02:21]} 17. bxc3 {[%clk 0:01:22]}  Na6 {[%clk 0:02:17]} 18. Rfe1 {[%clk 0:01:19]}  Qd7 {[%clk 0:02:05]} 19. Bf4 {[%clk 0:01:07]}  Rfd8 {[%clk 0:01:49]} 20. h4 {[%clk 0:01:02]}  b6 {[%clk 0:01:21]} 21. h5 {[%clk 0:00:59]}  Bb7 {[%clk 0:01:17]} 22. h6 {[%clk 0:00:59]}  g6 {[%clk 0:01:17]} 23. Bg5 {[%clk 0:00:53]}  Bxg5 {[%clk 0:01:14]} 24. Nxg5 {[%clk 0:00:54]}  c5 {[%clk 0:01:14]} 25. Qxb6 {[%clk 0:00:49]}  Rab8 {[%clk 0:01:06]} 26. Qxa5 {[%clk 0:00:47]}  cxd4 {[%clk 0:01:05]} 27. cxd4 {[%clk 0:00:46]}  Qxd4 {[%clk 0:01:05]} 28. Rab1 {[%clk 0:00:40]}  Nc5 {[%clk 0:00:56]} 29. Qc7 {[%clk 0:00:31]}  Nd3 {[%clk 0:00:52]} 30. Qxf7+ {[%clk 0:00:30]} 1-0


[Site "https://www.chess.com"]

[Event "Titled Tuesday Blitz June 15 2021"]
[White "Kim, Sergey"]
[Black "Ahmad, Al Khatib"]
[WhiteFideId "13700570"]
[BlackFideId "8103178"]
[WhiteElo "2490"]
[BlackElo "2151"]
[Result "1-0"]
[Round "10"]
[TimeControl "180+1"]
[Date "2021.06.15"]
[WhiteClock "0:00:57"]
[BlackClock "0:00:03"]

1. d4 {[%clk 0:03:00]}  Nf6 {[%clk 0:02:04]} 2. c4 {[%clk 0:03:00]}  g6 {[%clk 0:02:04]} 3. Nc3 {[%clk 0:03:00]}  Bg7 {[%clk 0:02:04]} 4. e4 {[%clk 0:03:00]}  d6 {[%clk 0:02:05]} 5. Nge2 {[%clk 0:03:00]}  Nbd7 {[%clk 0:01:54]} 6. Ng3 {[%clk 0:02:59]}  c5 {[%clk 0:01:54]} 7. d5 {[%clk 0:02:59]}  h5 {[%clk 0:01:55]} 8. h4 {[%clk 0:02:56]}  Ne5 {[%clk 0:01:54]} 9. Be2 {[%clk 0:02:56]}  O-O {[%clk 0:01:50]} 10. O-O {[%clk 0:02:55]}  a6 {[%clk 0:01:50]} 11. a4 {[%clk 0:02:53]}  Rb8 {[%clk 0:01:48]} 12. Bg5 {[%clk 0:02:52]}  Nh7 {[%clk 0:01:43]} 13. Qd2 {[%clk 0:02:35]}  Nxg5 {[%clk 0:01:42]} 14. hxg5 {[%clk 0:02:35]}  e6 {[%clk 0:01:39]} 15. f4 {[%clk 0:02:29]}  Ng4 {[%clk 0:01:35]} 16. Bxg4 {[%clk 0:02:19]}  hxg4 {[%clk 0:01:35]} 17. Nce2 {[%clk 0:01:52]}  exd5 {[%clk 0:01:31]} 18. cxd5 {[%clk 0:01:51]}  b5 {[%clk 0:01:24]} 19. a5 {[%clk 0:01:50]}  f6 {[%clk 0:01:06]} 20. f5 {[%clk 0:01:35]}  fxg5 {[%clk 0:00:38]} 21. fxg6 {[%clk 0:01:34]}  Qe7 {[%clk 0:00:24]} 22. Rxf8+ {[%clk 0:01:27]}  Bxf8 {[%clk 0:00:21]} 23. Rf1 {[%clk 0:01:22]}  Bg7 {[%clk 0:00:21]} 24. Rf7 {[%clk 0:01:21]}  Qe5 {[%clk 0:00:21]} 25. Qe3 {[%clk 0:01:07]}  Rb7 {[%clk 0:00:16]} 26. Qf2 {[%clk 0:01:06]}  Qxb2 {[%clk 0:00:13]} 27. Rxb7 {[%clk 0:01:02]}  Qa1+ {[%clk 0:00:06]} 28. Kh2 {[%clk 0:00:59]}  Be5 {[%clk 0:00:03]} 29. Qf7+ {[%clk 0:00:57]} 1-0


[Site "https://www.chess.com"]

[Event "Titled Tuesday Blitz June 15 2021"]
[White "Kislov, Oleg"]
[Black "Rustemov, Alexander"]
[WhiteFideId "13503774"]
[BlackFideId "4119002"]
[WhiteElo "2252"]
[BlackElo "2725"]
[Result "1/2-1/2"]
[Round "10"]
[TimeControl "180+1"]
[Date "2021.06.15"]
[WhiteClock "0:00:05"]
[BlackClock "0:00:35"]

1. e4 {[%clk 0:03:00]}  e6 {[%clk 0:03:00]} 2. d4 {[%clk 0:03:00]}  d5 {[%clk 0:03:00]} 3. Nc3 {[%clk 0:03:00]}  Bb4 {[%clk 0:03:00]} 4. exd5 {[%clk 0:03:01]}  exd5 {[%clk 0:03:00]} 5. Bd3 {[%clk 0:03:01]}  Nc6 {[%clk 0:03:00]} 6. Ne2 {[%clk 0:03:00]}  Nge7 {[%clk 0:02:59]} 7. Bf4 {[%clk 0:02:57]}  Bf5 {[%clk 0:02:58]} 8. O-O {[%clk 0:02:57]}  Bxc3 {[%clk 0:02:55]} 9. Nxc3 {[%clk 0:02:45]}  O-O {[%clk 0:02:38]} 10. Ne2 {[%clk 0:02:38]}  Bxd3 {[%clk 0:02:31]} 11. Qxd3 {[%clk 0:02:38]}  Qd7 {[%clk 0:02:32]} 12. c3 {[%clk 0:02:28]}  Nd8 {[%clk 0:02:32]} 13. Ng3 {[%clk 0:02:24]}  Ne6 {[%clk 0:02:31]} 14. Bd2 {[%clk 0:02:23]}  Rae8 {[%clk 0:02:28]} 15. Rae1 {[%clk 0:02:14]}  f6 {[%clk 0:02:17]} 16. Nf5 {[%clk 0:02:04]}  Nxf5 {[%clk 0:02:14]} 17. Qxf5 {[%clk 0:02:03]}  g6 {[%clk 0:02:15]} 18. Qd3 {[%clk 0:01:56]}  Kg7 {[%clk 0:02:08]} 19. Qh3 {[%clk 0:01:44]}  Rf7 {[%clk 0:02:02]} 20. Bh6+ {[%clk 0:01:38]}  Kg8 {[%clk 0:02:02]} 21. Re3 {[%clk 0:01:31]}  Rfe7 {[%clk 0:01:53]} 22. Rfe1 {[%clk 0:01:28]}  Kf7 {[%clk 0:01:51]} 23. Bf4 {[%clk 0:01:15]}  h5 {[%clk 0:01:51]} 24. Qf3 {[%clk 0:00:41]}  c6 {[%clk 0:01:47]} 25. Be5 {[%clk 0:00:39]}  f5 {[%clk 0:01:42]} 26. h3 {[%clk 0:00:37]}  Ng5 {[%clk 0:01:40]} 27. Qf4 {[%clk 0:00:34]}  Ne4 {[%clk 0:01:33]} 28. Qh6 {[%clk 0:00:32]}  Rg8 {[%clk 0:01:29]} 29. f3 {[%clk 0:00:26]}  Nf6 {[%clk 0:01:09]} 30. Bxf6 {[%clk 0:00:10]}  Rxe3 {[%clk 0:01:10]} 31. Rxe3 {[%clk 0:00:07]}  Kxf6 {[%clk 0:01:10]} 32. Re5 {[%clk 0:00:07]}  Qg7 {[%clk 0:00:59]} 33. Qe3 {[%clk 0:00:06]}  Qd7 {[%clk 0:00:57]} 34. h4 {[%clk 0:00:07]}  Kf7 {[%clk 0:00:54]} 35. Qh6 {[%clk 0:00:06]}  Rg7 {[%clk 0:00:53]} 36. Qg5 {[%clk 0:00:07]}  b6 {[%clk 0:00:53]} 37. f4 {[%clk 0:00:05]}  Kg8 {[%clk 0:00:49]} 38. Qf6 {[%clk 0:00:05]}  Kh7 {[%clk 0:00:48]} 39. Re6 {[%clk 0:00:05]}  c5 {[%clk 0:00:48]} 40. Qe5 {[%clk 0:00:04]}  cxd4 {[%clk 0:00:44]} 41. cxd4 {[%clk 0:00:05]}  Qa4 {[%clk 0:00:37]} 42. Kh2 {[%clk 0:00:04]}  Qxa2 {[%clk 0:00:34]} 43. Re7 {[%clk 0:00:04]}  Rxe7 {[%clk 0:00:34]} 44. Qxe7+ {[%clk 0:00:04]}  Kg8 {[%clk 0:00:34]} 45. Qe8+ {[%clk 0:00:04]}  Kg7 {[%clk 0:00:34]} 46. Qe7+ {[%clk 0:00:05]}  Kg8 {[%clk 0:00:34]} 47. Qe8+ {[%clk 0:00:05]}  Kg7 {[%clk 0:00:35]} 48. Qe7+ {[%clk 0:00:05]}  Kg8 {[%clk 0:00:35]} 1/2-1/2


[Site "https://www.chess.com"]